fUST/lending_fUST_20260115
["ID","MTS","AMOUNT","RATE_DAILY","PERIOD"]
[401962121,1768423840188,-1000.0,0.00013821,2]
[401962123,1768423840198,-1000.0,0.00013821,2]
[401962125,1768423840207,-500.21355158,0.00013821,2]
[401962127,1768423840217,-1000.0,0.00013821,2]
[401962129,1768423840226,-1000.0,0.00013821,2]
[401962131,1768423840236,-1000.0,0.00013821,2]
[401962133,1768423840246,-928.55236375,0.00013821,2]
[401962135,1768423840255,-855.28517105,0.00013821,2]
[401962137,1768423840264,-1000.0,0.00013821,2]
[401962139,1768423840273,-1000.0,0.00013821,2]
[401962141,1768423840282,-1000.0,0.00013821,2]
[401962143,1768423840291,-1000.0,0.00013821,2]
[401962145,1768423840300,-1000.0,0.00013821,2]
[401962147,1768423840309,-397.87367922,0.00013821,2]
[401962149,1768423840318,-1000.0,0.00013821,2]
[401962151,1768423840327,-1000.0,0.00013821,2]
[401962153,1768423840336,-424.36340331,0.00013821,2]
[401962155,1768423840345,-476.24625729,0.00013821,2]
[401962157,1768423840354,-344.64451203,0.00013821,2]
[401962159,1768423840363,-648.56695785,0.00013821,2]
[401962161,1768423840372,-402.84208179,0.00013821,2]
[401962163,1768423840381,-1000.0,0.00013821,2]
[401962165,1768423840390,-1000.0,0.00013821,2]
[401962167,1768423840399,-1000.0,0.00013821,2]
[401962169,1768423840408,-1000.0,0.00013821,2]
[401962171,1768423840417,-704.52635897,0.00013821,2]
[401962173,1768423840426,-1000.0,0.00013821,2]
[401962175,1768423840437,-1000.0,0.00013821,2]
[401962177,1768423840447,-1000.0,0.00013821,2]
[401962179,1768423840456,-1000.0,0.00013821,2]
[401962181,1768423840464,-1000.0,0.00013821,2]
[401962183,1768423840473,-1000.0,0.00013821,2]
[401962185,1768423840482,-940.24648614,0.00013821,2]
[401962187,1768423840491,-1000.0,0.00013821,2]
[401962189,1768423840500,-1000.0,0.00013821,2]
[401962191,1768423840509,-1000.0,0.00013821,2]
[401962193,1768423840518,-1000.0,0.00013821,2]
[401962195,1768423840527,-1000.0,0.00013821,2]
[401962197,1768423840536,-619.03226299,0.00013821,2]
[401962199,1768423840545,-500.0,0.00013821,2]
[401962201,1768423840554,-500.0,0.00013821,2]
[401962203,1768423840563,-864.0,0.00013845,2]
[401962205,1768423840572,-151.0,0.000139,2]
[401962207,1768423840581,-8272.89478688,0.00013902,2]
[401962209,1768423840590,-500.0,0.00013958,2]
[401962211,1768423840599,-500.0,0.00013958,2]
[401962213,1768423840608,-150.15988072,0.00013973,2]
[401962215,1768423840617,-577.06088852,0.00013977,2]
[401962217,1768423840626,-823.0,0.00014027,2]
[401962219,1768423840635,-500.0,0.00014095,2]
[401962221,1768423840644,-205.03362279,0.00014095,2]
[401962223,1768423840653,-5103.83032681,0.00014147,2]
[401962225,1768423840662,-600.0,0.00014221,2]
[401962227,1768423840671,-500.0,0.00014232,2]
[401962229,1768423840679,-1238.81,0.00014246,2]
[401962231,1768423840690,-1238.81,0.00014246,2]
[401962233,1768423840699,-1238.81,0.00014246,2]
[401962235,1768423840708,-1593.3,0.00014246,2]
[401962237,1768423840718,-1593.3,0.00014246,2]
[401962239,1768423840727,-1593.3,0.00014246,2]
[401962241,1768423840736,-563.44,0.00014246,2]
[401962243,1768423840744,-563.44,0.00014246,2]
[401962245,1768423840753,-563.44,0.00014246,2]
[401962247,1768423840762,-500.31646223,0.00014247,2]
[401962249,1768423840771,-500.64767098,0.00014247,2]
[401962251,1768423840780,-1000.0,0.00014247,2]
[401962253,1768423840788,-1000.62157755,0.00014247,2]
[401962255,1768423840797,-1000.0,0.00014247,2]
[401962257,1768423840806,-559.26251357,0.00014247,2]
[401962259,1768423840815,-1000.0,0.00014247,2]
[401962261,1768423840823,-1000.0,0.00014247,2]
[401962263,1768423840832,-809.68519743,0.00014247,2]
[401962265,1768423840841,-1000.0,0.00014247,2]
[401962267,1768423840850,-501.04290038,0.00014247,2]
[401962269,1768423840859,-250.0,0.00014247,2]
[401962271,1768423840868,-930.92904569,0.00014247,2]
[401962273,1768423840878,-1000.0,0.00014247,2]
[401962275,1768423840887,-1000.0,0.00014247,2]
[401962277,1768423840896,-1000.0,0.00014247,2]
[401962279,1768423840905,-253.04828186,0.00014247,2]
[401962281,1768423840914,-1000.0,0.00014247,2]
[401962283,1768423840923,-526.2087109,0.00014247,2]
[401962285,1768423840932,-685.95842189,0.00014247,2]
[401962287,1768423840941,-1000.0,0.00014247,2]
[401962289,1768423840951,-1001.31706943,0.00014247,2]
[401962291,1768423840960,-1000.0,0.00014247,2]
[401962293,1768423840969,-1000.0,0.00014247,2]
[401962295,1768423840978,-1000.0,0.00014247,2]
[401962297,1768423840987,-1000.0,0.00014247,2]
[401962299,1768423840996,-1000.0,0.00014247,2]
[401962301,1768423841007,-1000.0,0.00014247,2]
[401962303,1768423841015,-501.21795351,0.00014247,2]
[401962305,1768423841028,-500.73561513,0.00014247,2]
[401962307,1768423841037,-813.15709068,0.00014247,2]
[401962309,1768423841047,-1000.0,0.00014247,2]
[401962311,1768423841055,-501.82501982,0.00014247,2]
[401962312,1768423841066,-504.71400239,0.00014247,2]
[401962314,1768423841075,-1000.0,0.00014247,2]
[401962316,1768423841084,-1000.0,0.00014247,2]
[401962319,1768423841094,-693.53352259,0.00014247,2]
[401962321,1768423841103,-1003.87539742,0.00014247,2]
[401962323,1768423841112,-1000.0,0.00014247,2]
[401962325,1768423841121,-1000.0,0.00014247,2]
[401962327,1768423841131,-1000.0,0.00014247,2]
[401962329,1768423841140,-1000.0,0.00014247,2]
[401962331,1768423841149,-1000.0,0.00014247,2]
[401962333,1768423841159,-990.87296502,0.00014247,2]
[401962335,1768423841168,-1000.0,0.00014247,2]
[401962337,1768423841177,-1087.16663197,0.00014247,2]
[401962339,1768423841186,-1000.0,0.00014247,2]
[401962341,1768423841196,-519.65670355,0.00014247,2]
[401962343,1768423841205,-343.96245491,0.00014247,2]
[401962345,1768423841214,-1000.0,0.00014247,2]
[401962347,1768423841224,-1000.0,0.00014247,2]
[401962349,1768423841233,-1000.0,0.00014247,2]
[401962351,1768423841242,-1000.0,0.00014247,2]
[401962353,1768423841252,-1000.0,0.00014247,2]
[401962355,1768423841260,-501.74975073,0.00014247,2]
[401962357,1768423841269,-1000.0,0.00014247,2]
[401962359,1768423841278,-1000.0,0.00014247,2]
[401962361,1768423841288,-501.3857634,0.00014247,2]
[401962363,1768423841296,-504.58578591,0.00014247,2]
[401962365,1768423841305,-1000.0,0.00014247,2]
[401962367,1768423841314,-1000.0,0.00014247,2]
[401962369,1768423841323,-1000.0,0.00014247,2]
[401962370,1768423841332,-222.07799816,0.00014288,2]
[401962372,1768423841340,-1238.81,0.00014368,2]
[401962374,1768423841349,-1593.3,0.00014368,2]
[401962376,1768423841358,-563.44,0.00014368,2]
[401962379,1768423841368,-1500.0,0.00014368,2]
[401962381,1768423841377,-1500.0,0.00014368,2]
[401962383,1768423841387,-1500.0,0.00014368,2]
[401962385,1768423841396,-1500.0,0.00014368,2]
[401962386,1768423841406,-1500.0,0.00014368,2]
[401962387,1768423841415,-556.99110983,0.00014368,2]
[401962388,1768423841424,-1500.0,0.00014368,2]
[401962389,1768423841433,-503.63165228,0.00014368,2]
[401962390,1768423841441,-386.78841051,0.00014368,2]
[401962391,1768423841450,-284.00644743,0.00014368,2]
[401962392,1768423841459,-1500.0,0.00014368,2]
[401962393,1768423841467,-1500.0,0.00014368,2]
[401962394,1768423841476,-1500.0,0.00014368,2]
[401962395,1768423841485,-1502.68632401,0.00014368,2]
[401962396,1768423841494,-771.86141758,0.00014368,2]
[401962397,1768423841503,-502.88869488,0.00014368,2]
[401962398,1768423841512,-1153.79187063,0.00014368,2]
[401962399,1768423841520,-1500.0,0.00014368,2]
[401962400,1768423841529,-1500.0,0.00014368,2]
[401962402,1768423841538,-1500.0,0.00014368,2]
[401962404,1768423841547,-1500.0,0.00014368,2]
[401962406,1768423841556,-1500.0,0.00014368,2]
[401962409,1768423841566,-606.75656303,0.00014368,2]
[401962411,1768423841575,-446.5684735,0.00014368,2]
[401962413,1768423841583,-195.77760179,0.00014368,2]
[401962415,1768423841592,-1503.01901965,0.00014368,2]
[401962417,1768423841601,-1500.0,0.00014368,2]
[401962419,1768423841610,-1500.0,0.00014368,2]
[401962421,1768423841619,-1500.0,0.00014368,2]
[401962438,1768423841769,-1500.0,0.00014368,2]
[401962440,1768423841778,-1500.0,0.00014368,2]
[401962442,1768423841788,-1500.0,0.00014368,2]
[401962444,1768423841797,-1500.0,0.00014368,2]
[401962446,1768423841806,-1500.0,0.00014368,2]
[401962448,1768423841815,-391.51090458,0.00014368,2]
[401962450,1768423841824,-1500.0,0.00014368,2]
[401962452,1768423841833,-1500.0,0.00014368,2]
[401962454,1768423841842,-1239.23149088,0.00014368,2]
[401962456,1768423841851,-500.0,0.00014369,2]
[401962458,1768423841860,-1238.81,0.00014443,2]
[401962460,1768423841869,-1238.81,0.00014443,2]
[401962462,1768423841879,-1238.81,0.00014443,2]
[401962464,1768423841887,-1238.81,0.00014443,2]
[401962466,1768423841896,-1238.81,0.00014443,2]
[401962468,1768423841905,-1239.00529864,0.00014443,2]
[401962470,1768423841914,-1593.3,0.00014443,2]
[401962472,1768423841923,-1593.3,0.00014443,2]
[401962474,1768423841932,-1593.3,0.00014443,2]
[401962476,1768423841941,-1593.3,0.00014443,2]
[401962478,1768423841950,-1593.3,0.00014443,2]
[401962480,1768423841959,-1593.3055421,0.00014443,2]
[401962482,1768423841968,-563.44,0.00014443,2]
[401962484,1768423841977,-563.44,0.00014443,2]
[401962486,1768423841985,-563.44,0.00014443,2]
[401962488,1768423841994,-563.44,0.00014443,2]
[401962490,1768423842004,-563.44,0.00014443,2]
[401962492,1768423842012,-563.54678427,0.00014443,2]
[401962494,1768423842022,-100000.0,0.00014444,2]
[401962496,1768423842034,-155.96,0.000145,2]
[401962498,1768423842043,-429.09707327,0.00014506,2]
[401962500,1768423842052,-5000.0,0.0001451,2]
[401962502,1768423842061,-151.0,0.000147,2]
[401962504,1768423842071,-900.0,0.00014768,2]
[401962505,1768423842080,-1141.35739865,0.00014795,2]
[401962507,1768423842089,-622.97821503,0.00014795,2]
[401962509,1768423842099,-1103.68651404,0.00014795,2]
[401962511,1768423842109,-419.62973898,0.00014795,2]
[401962513,1768423842119,-1503.83285644,0.00014795,2]
[401962515,1768423842127,-200.84224431,0.00014795,2]
[401962517,1768423842137,-1500.0,0.00014795,2]
[401962519,1768423842146,-586.73306672,0.00014795,2]
[401962521,1768423842156,-1500.0,0.00014795,2]
[401962522,1768423842165,-1518.01129916,0.00014795,2]
[401962524,1768423842173,-1082.85856265,0.00014795,2]
[401962526,1768423842184,-1479.00156205,0.00014795,2]
[401962528,1768423842193,-1500.0,0.00014795,2]
[401962530,1768423842202,-501.28209032,0.00014795,2]
[401962532,1768423842211,-1500.0,0.00014795,2]
[401962534,1768423842220,-1500.0,0.00014795,2]
[401962536,1768423842228,-1500.0,0.00014795,2]
[401962538,1768423842238,-1165.99620392,0.00014795,2]
[401962540,1768423842247,-341.41978725,0.00014795,2]
[401962542,1768423842257,-1500.0,0.00014795,2]
[401962544,1768423842266,-1500.0,0.00014795,2]
[401962546,1768423842274,-1500.0,0.00014795,2]
[401962548,1768423842283,-1292.00440399,0.00014795,2]
[401962550,1768423842292,-449.7291255,0.00014795,2]
[401962553,1768423842302,-827.64226173,0.00014795,2]
[401962555,1768423842313,-522.48598281,0.00014795,2]
[401962557,1768423842321,-1500.0,0.00014795,2]
[401962559,1768423842330,-1051.15225971,0.00014795,2]
[401962561,1768423842340,-1500.0,0.00014795,2]
[401962563,1768423842349,-927.69304459,0.00014795,2]
[401962565,1768423842358,-1500.0,0.00014795,2]
[401962567,1768423842367,-1500.0,0.00014795,2]
[401962569,1768423842376,-1500.0,0.00014795,2]
[401962571,1768423842386,-1500.0,0.00014795,2]
[401962573,1768423842394,-1500.0,0.00014795,2]
[401962576,1768423842403,-1500.0,0.00014795,2]
[401962578,1768423842412,-1500.0,0.00014795,2]
[401962580,1768423842421,-1000.0,0.000149,2]
[401962582,1768423842430,-1000.0,0.000149,2]
[401962584,1768423842440,-1000.0,0.000149,2]
[401962586,1768423842449,-1000.0,0.000149,2]
[401962588,1768423842458,-1000.0,0.000149,2]
[401962591,1768423842467,-1000.0,0.000149,2]
[401962594,1768423842476,-1000.0,0.000149,2]
[401962596,1768423842485,-1000.0,0.000149,2]
[401962598,1768423842494,-1000.0,0.000149,2]
[401962600,1768423842504,-1000.0,0.000149,2]
[401962602,1768423842513,-403.91919138,0.000149,2]
[401962603,1768423842523,-403.91919137,0.000149,2]
[401962605,1768423842532,-403.91919137,0.000149,2]
[401962607,1768423842540,-2000.0,0.00014916,2]
[401962609,1768423842550,-1804.55815231,0.00014916,2]
[401962611,1768423842558,-2000.0,0.00014916,2]
[401962613,1768423842567,-1233.4001228,0.00014916,2]
[401962616,1768423842576,-2000.0,0.00014916,2]
[401962619,1768423842585,-1003.76788333,0.00014916,2]
[401962622,1768423842593,-522.04357159,0.00014916,2]
[401962625,1768423842602,-2000.0,0.00014916,2]
[401962628,1768423842611,-2000.0,0.00014916,2]
[401962631,1768423842620,-2003.99870158,0.00014916,2]
[401962634,1768423842629,-1623.81068567,0.00014916,2]
[401962637,1768423842638,-2000.0,0.00014916,2]
[401962639,1768423842647,-2000.0,0.00014916,2]
[401962641,1768423842656,-2000.0,0.00014916,2]
[401962643,1768423842666,-2000.0,0.00014916,2]
[401962645,1768423842675,-1164.35893779,0.00014916,2]
[401962647,1768423842686,-2000.0,0.00014916,2]
[401962649,1768423842695,-2000.0,0.00014916,2]
[401962651,1768423842704,-2000.0,0.00014916,2]
[401962654,1768423842713,-2000.0,0.00014916,2]
[401962656,1768423842721,-2000.0,0.00014916,2]
[401962658,1768423842730,-2000.0,0.00014916,2]
[401962660,1768423842739,-158.07183809,0.00014916,2]
[401962662,1768423842748,-1288.90612665,0.00014916,2]
[401962664,1768423842757,-15000.0,0.00015,2]
[401962666,1768423842766,-588.909417,0.00015068,2]
[401962668,1768423842775,-800.0,0.00015068,2]
[401962669,1768423842784,-151.0,0.000152,2]
[401962671,1768423842793,-1000.0,0.0001523,2]
[401962673,1768423842802,-151.0,0.000153,2]
[401962675,1768423842811,-1200.0,0.00015316,2]
[401962677,1768423842820,-159.70838602,0.00015342,2]
[401962679,1768423842829,-1003.42728186,0.00015342,2]
[401962681,1768423842838,-992.62086011,0.00015342,2]
[401962683,1768423842847,-2000.0,0.00015342,2]
[401962685,1768423842857,-2000.0,0.00015342,2]
[401962687,1768423842866,-2000.0,0.00015342,2]
[401962689,1768423842875,-2000.0,0.00015342,2]
[401962691,1768423842884,-2000.0,0.00015342,2]
[401962693,1768423842893,-2000.0,0.00015342,2]
[401962695,1768423842902,-373.84265648,0.00015342,2]
[401962697,1768423842910,-2000.0,0.00015342,2]
[401962699,1768423842919,-646.70021057,0.00015342,2]
[401962701,1768423842928,-1501.41649607,0.00015342,2]
[401962703,1768423842937,-2000.0,0.00015342,2]
[401962704,1768423842946,-2000.0,0.00015342,2]
[401962706,1768423842955,-155.96,0.000154,2]
[401962708,1768423842964,-1549.64,0.00015405,2]
[401962710,1768423842973,-1152.0,0.00015421,2]
[401962712,1768423842982,-2500.0,0.00015464,2]
[401962714,1768423842991,-2500.0,0.00015464,2]
[401962716,1768423843000,-991.08735074,0.00015464,2]
[401962718,1768423843009,-2500.0,0.00015464,2]
[401962720,1768423843018,-2500.0,0.00015464,2]
[401962722,1768423843033,-1500.0,0.00015464,2]
[401962724,1768423843042,-2500.0,0.00015464,2]
[401962726,1768423843051,-2500.0,0.00015464,2]
[401962728,1768423843061,-209.88778028,0.00015464,2]
[401962730,1768423843070,-2500.0,0.00015464,2]
[401962732,1768423843080,-2500.0,0.00015464,2]
[401962734,1768423843090,-531.81939639,0.00015464,2]
[401962736,1768423843100,-2500.0,0.00015464,2]
[401962738,1768423843109,-2500.0,0.00015464,2]
[401962740,1768423843120,-2500.0,0.00015464,2]
[401962742,1768423843130,-151.0,0.000155,2]
[401962744,1768423843139,-28358.918768,0.000155,7]
[401962746,1768423843148,-10000.0,0.0001551,2]
[401962748,1768423843157,-10000.0,0.0001551,2]
[401962750,1768423843166,-10000.0,0.0001551,2]
[401962752,1768423843175,-10000.0,0.0001551,2]
[401962754,1768423843185,-10000.0,0.0001551,2]
[401962756,1768423843195,-4839.12,0.0001551,2]
[401962758,1768423843204,-1500.0,0.00015864,2]
[401962760,1768423843213,-573.589255,0.00015864,7]
[401962762,1768423843222,-559.4878042,0.0001589,2]
[401962764,1768423843231,-2500.0,0.0001589,2]
[401962766,1768423843240,-2500.0,0.0001589,2]
[401962768,1768423843249,-1433.973139,0.0001589,7]
[401962770,1768423843260,-563.27896724,0.0001589,2]
[401962772,1768423843270,-1211.66599686,0.0001589,2]
[401962774,1768423843279,-9714.094937,0.0001589,7]
[401962776,1768423843288,-2500.0,0.0001589,2]
[401962777,1768423843298,-2500.0,0.0001589,2]
[401962779,1768423843306,-2500.0,0.0001589,2]
[401962780,1768423843315,-2500.0,0.0001589,2]
[401962782,1768423843324,-653.43659435,0.00015977,2]
[401962785,1768423843334,-3000.0,0.00016012,2]
[401962787,1768423843343,-1692.29139729,0.00016012,2]
[401962789,1768423843351,-913.29712103,0.00016012,2]
[401962791,1768423843361,-3000.0,0.00016012,2]
[401962793,1768423843370,-242.596403,0.00016012,7]
[401962795,1768423843379,-1671.14126243,0.00016012,2]
[401962797,1768423843388,-3000.0,0.00016012,2]
[401962799,1768423843397,-3000.0,0.00016012,2]
[401962801,1768423843407,-3000.0,0.00016012,2]
[401962803,1768423843416,-3000.0,0.00016012,2]
[401962805,1768423843425,-3000.0,0.00016012,2]
[401962806,1768423843434,-3000.0,0.00016012,2]
[401962808,1768423843443,-1600.0,0.00016164,2]
[401962810,1768423843452,-24285.237345,0.00016164,7]
[401962812,1768423843462,-151.0,0.000163,2]
[401962814,1768423843471,-3584.932846,0.00016412,7]
[401962816,1768423843480,-1800.0,0.00016412,2]
[401962818,1768423843488,-151.0,0.00016438,2]
[401962820,1768423843497,-151.0,0.00016438,2]
[401962822,1768423843506,-151.0,0.00016438,2]
[401962824,1768423843515,-151.0,0.00016438,2]
[401962826,1768423843523,-795.987765,0.00016438,2]
[401962828,1768423843533,-795.987765,0.00016438,2]
[401962830,1768423843542,-795.987765,0.00016438,2]
[401962832,1768423843551,-795.987765,0.00016438,2]
[401962834,1768423843560,-151.0,0.00016438,2]
[401962836,1768423843569,-151.0,0.00016438,2]
[401962838,1768423843578,-500.0,0.00016438,2]
[401962840,1768423843587,-449.05735745,0.00016438,2]
[401962841,1768423843596,-500.0,0.00016438,2]
[401962842,1768423843605,-500.0,0.00016438,2]
[401962843,1768423843615,-500.0,0.00016438,2]
[401962844,1768423843624,-500.0,0.00016438,2]
[401962845,1768423843633,-595.30780858,0.00016438,2]
[401962846,1768423843642,-582.231365,0.00016438,7]
[401962847,1768423843651,-70897.296919,0.00016438,7]
[401962848,1768423843660,-200.0,0.00016438,2]
[401962849,1768423843669,-186.591978,0.00016438,2]
[401962850,1768423843678,-186.591978,0.00016438,2]
[401962851,1768423843687,-186.591978,0.00016438,2]
[401962852,1768423843696,-186.591978,0.00016438,2]
[401962853,1768423843705,-164.26686219,0.00016438,2]
[401962854,1768423843714,-60494.756603,0.00016438,7]
[401962855,1768423843722,-177243.242297,0.00016438,7]
[401962856,1768423843732,-1044.67516775,0.00016438,2]
[401962857,1768423843740,-3000.0,0.00016438,2]
[401962858,1768423843749,-3000.0,0.00016438,2]
[401962859,1768423843758,-1319.68437302,0.00016438,2]
[401962860,1768423843767,-3000.0,0.00016438,2]
[401962861,1768423843775,-3000.0,0.00016438,2]
[401962862,1768423843784,-260.29560408,0.00016438,2]
[401962863,1768423843793,-5103.83032678,0.0001646,2]
[401962864,1768423843802,-200.0,0.00016473,2]
[401962865,1768423843810,-3500.0,0.0001656,2]
[401962866,1768423843819,-3500.0,0.0001656,2]
[401962867,1768423843827,-3500.0,0.0001656,2]
[401962868,1768423843836,-3500.0,0.0001656,2]
[401962869,1768423843845,-3500.0,0.0001656,2]
[401962870,1768423843854,-416.13825137,0.0001656,2]
[401962871,1768423843862,-3500.0,0.0001656,2]
[401962872,1768423843871,-3500.0,0.0001656,2]
[401962873,1768423843880,-151.0,0.000166,2]
[401962874,1768423843889,-1455.578414,0.0001673,7]
[401962875,1768423843898,-1000.0,0.00016753,2]
[401962876,1768423843906,-244.0,0.00016753,2]
[401962877,1768423843915,-8272.89478688,0.00016904,2]
[401962878,1768423843924,-1613.0,0.00016953,2]
[401962880,1768423843933,-2100.0,0.0001696,2]
[401962882,1768423843943,-270.0,0.00016986,2]
[401962884,1768423843951,-2087.94374426,0.00016986,2]
[401962886,1768423843961,-3500.0,0.00016986,2]
[401962888,1768423843970,-3500.0,0.00016986,2]
[401962890,1768423843978,-3500.0,0.00016986,2]
[401962892,1768423843988,-15000.0,0.00017,2]
[401962894,1768423843997,-151.0,0.00017,2]
[401962896,1768423844006,-3417.48910491,0.00017108,2]
[401962898,1768423844015,-4000.0,0.00017108,2]
[401962900,1768423844027,-4000.0,0.00017108,2]
[401962902,1768423844036,-4000.0,0.00017108,2]
[401962904,1768423844046,-4000.0,0.00017108,2]
[401962906,1768423844056,-4000.0,0.00017108,2]
[401962908,1768423844066,-3392.75982988,0.00017108,2]
[401962910,1768423844075,-151.0,0.0001726,2]
[401962911,1768423844083,-151.0,0.0001726,2]
[401962914,1768423844093,-2400.0,0.0001726,2]
[401962915,1768423844103,-5000.0,0.00017412,2]
[401962918,1768423844113,-2400.0,0.00017508,2]
[401962920,1768423844123,-174.48080933,0.00017534,2]
[401962921,1768423844133,-400.0,0.00017534,2]
[401962923,1768423844142,-4000.0,0.00017534,2]
[401962926,1768423844152,-4000.0,0.00017534,2]
[401962928,1768423844161,-4000.0,0.00017534,2]
[401962929,1768423844171,-8962.332115,0.00017656,7]
[401962931,1768423844180,-3199.34641428,0.00017656,2]
[401962933,1768423844190,-4500.0,0.00017656,2]
[401962935,1768423844199,-4500.0,0.00017656,2]
[401962937,1768423844208,-4500.0,0.00017656,2]
[401962939,1768423844217,-4500.0,0.00017656,2]
[401962941,1768423844227,-168.28,0.00017755,2]
[401962944,1768423844236,-151.0,0.000178,2]
[401962946,1768423844245,-11816.216153,0.00017825,7]
[401962947,1768423844255,-400.30202268,0.00017842,2]
[401962949,1768423844264,-151.0,0.000179,2]
[401962952,1768423844275,-729.81230018,0.00017977,2]
[401962953,1768423844284,-1041.66666667,0.00018013,2]
[401962955,1768423844293,-2700.0,0.00018056,2]
[401962957,1768423844302,-4500.0,0.00018082,2]
[401962959,1768423844312,-4500.0,0.00018082,2]
[401962961,1768423844321,-4500.0,0.00018082,2]
[401962963,1768423844331,-5000.0,0.00018204,2]
[401962965,1768423844340,-5000.0,0.00018204,2]
[401962967,1768423844349,-5000.0,0.00018204,2]
[401962969,1768423844359,-5000.0,0.00018204,2]
[401962972,1768423844368,-238.995522,0.00018244,7]
[401962974,1768423844378,-4047.539557,0.00018274,7]
[401962976,1768423844387,-3200.0,0.00018356,2]
[401962978,1768423844396,-843.4,0.00018409,2]
[401962980,1768423844406,-1000.0,0.00018428,2]
[401962982,1768423844415,-492.0,0.00018428,2]
[401962983,1768423844423,-588.909417,0.00018493,2]
[401962985,1768423844432,-151.0,0.000186,2]
[401962987,1768423844443,-3000.0,0.00018604,2]
[401962989,1768423844451,-600.0,0.0001863,2]
[401962991,1768423844461,-5000.0,0.0001863,2]
[401962993,1768423844470,-5000.0,0.0001863,2]
[401962995,1768423844479,-5000.0,0.0001863,2]
[401962997,1768423844488,-2258.0,0.00018638,2]
[401962999,1768423844498,-4088.14205975,0.00018752,2]
[401963001,1768423844507,-5500.0,0.00018752,2]
[401963003,1768423844515,-5500.0,0.00018752,2]
[401963005,1768423844525,-5500.0,0.00018752,2]
[401963007,1768423844534,-5103.83032678,0.00018774,2]
[401963009,1768423844543,-5000.0,0.00018863,2]
[401963011,1768423844553,-303.10001603,0.000189,2]
[401963014,1768423844562,-303.10001603,0.000189,2]
[401963016,1768423844571,-10000.0,0.00019,2]
[401963017,1768423844580,-168.26957802,0.00019036,2]
[401963019,1768423844590,-160.35823449,0.00019056,2]
[401963022,1768423844599,-303.10001603,0.00019089,2]
[401963024,1768423844609,-303.10001603,0.00019089,2]
[401963026,1768423844618,-3300.0,0.00019152,2]
[401963027,1768423844627,-180.72597661,0.00019178,2]
[401963029,1768423844637,-683.587352,0.00019178,2]
[401963031,1768423844645,-683.587352,0.00019178,2]
[401963033,1768423844654,-683.587352,0.00019178,2]
[401963035,1768423844663,-683.587352,0.00019178,2]
[401963037,1768423844672,-151.0,0.00019178,2]
[401963054,1768423844812,-151.0,0.00019178,2]
[401963056,1768423844822,-5500.0,0.00019178,2]
[401963058,1768423844831,-5500.0,0.00019178,2]
[401963060,1768423844840,-5500.0,0.00019178,2]
[401963062,1768423844849,-212.43,0.000192,2]
[401963064,1768423844858,-4165.64,0.000192,2]
[401963066,1768423844867,-239.88,0.000192,2]
[401963068,1768423844875,-167.77,0.000192,2]
[401963070,1768423844884,-31505.21,0.000192,2]
[401963072,1768423844893,-303.10001603,0.00019278,2]
[401963074,1768423844902,-303.10001603,0.00019278,2]
[401963076,1768423844911,-151.0,0.000193,2]
[401963077,1768423844921,-151.0,0.000193,2]
[401963079,1768423844931,-4540.44472477,0.000193,2]
[401963081,1768423844941,-6000.0,0.000193,2]
[401963084,1768423844950,-6000.0,0.000193,2]
[401963086,1768423844960,-402.28551192,0.00019393,2]
[401963087,1768423844969,-307.61092211,0.00019452,2]
[401963089,1768423844978,-303.10001603,0.00019467,2]
[401963091,1768423844987,-303.10001603,0.00019467,2]
[401963093,1768423844997,-303.10001603,0.00019656,2]
[401963096,1768423845006,-303.10001603,0.00019656,2]
[401963098,1768423845016,-843.4,0.00019682,2]
[401963100,1768423845029,-456.20051056,0.000197,2]
[401963102,1768423845038,-800.0,0.00019726,2]